fUST/lending_fUST_20260107
["ID","MTS","AMOUNT","RATE_DAILY","PERIOD"]
[400693441,1767780254920,247.24,7.43e-05,2]
[400693442,1767780255335,370.86,7.768e-05,2]
[400693443,1767780255757,494.49,8.106e-05,2]
[400693444,1767780256201,618.11,8.444e-05,2]
[400693445,1767780256623,741.73,8.781e-05,2]
[400693446,1767780257068,865.35,9.119e-05,2]
[400693447,1767780263852,-169.3686996,9.457e-05,2]
[400693449,1767780266496,-188.32954994,9.457e-05,2]
[400693450,1767780269347,-285.68175046,9.457e-05,2]
[400693451,1767780272598,3224.71891286,9.275e-05,2]
[400693452,1767780285655,-345.59,9.457e-05,2]
[400693453,1767780285688,-1112.59,9.795e-05,2]
[400693454,1767780285720,-1236.21,0.00010132,2]
[400693455,1767780285750,-1219.37914973,0.00011,2]
[400693456,1767780285778,-300.0,0.00011568,2]
[400693457,1767780289033,1572.47170054,0.0001157,2]
[400693466,1767780316023,-3427.52829946,0.0001157,2]
[400693467,1767780316044,-300.0,0.00011571,2]
[400693468,1767780316066,-300.0,0.00011572,2]
[400693469,1767780316088,-300.0,0.00011572,2]
[400693470,1767780316111,-300.0,0.00011572,2]
[400693471,1767780316134,-300.0,0.00011572,2]
[400693472,1767780316156,-300.0,0.00011572,2]
[400693473,1767780316178,-300.0,0.00011572,2]
[400693474,1767780316200,-300.0,0.00011572,2]
[400693475,1767780316222,-300.0,0.00011572,2]
[400693476,1767780316244,-300.0,0.00011572,2]
[400693477,1767780316265,-300.0,0.00011572,2]
[400693478,1767780316287,-300.0,0.00011572,2]
[400693479,1767780316309,-300.0,0.00011572,2]
[400693480,1767780316332,-300.0,0.00011572,2]
[400693481,1767780316357,-300.0,0.00011572,2]
[400693482,1767780316380,-300.0,0.00011572,2]
[400693483,1767780316401,-1772.47170054,0.00011572,2]
[400693485,1767780324921,169.0,0.00028894,120]
[400693488,1767780329579,-1606.018551,0.00011454,2]
[400693489,1767780329599,-8393.981449,0.00011572,2]
[400693490,1767780332668,170.94,7.183e-05,2]
[400693491,1767780333140,227.93,7.495e-05,2]
[400693492,1767780333837,284.91,7.807e-05,2]
[400693493,1767780334070,341.89,8.119e-05,2]
[400693494,1767780334583,398.87,8.432e-05,2]
[400693495,1767780335027,455.85,8.744e-05,2]
[400693496,1767780335436,512.83,9.056e-05,2]
[400693497,1767780338204,-351.72,9.369e-05,2]
[400693498,1767780349350,-218.1,9.369e-05,2]
[400693508,1767780406120,166.23,8.46e-05,2]
[400693509,1767780406543,189.97,8.774e-05,2]
[400693510,1767780407008,213.72,9.087e-05,2]
[400693511,1767780407607,237.47,9.4e-05,2]
[400693514,1767780560340,-5000.0,0.00011405,2]
[400693515,1767780560367,-173.88056674,0.00011521,2]
[400693516,1767780560389,-169.7416343,0.00011585,2]
[400693565,1767780637277,-2978.27810323,0.00012482,2]
[400693566,1767780637287,-596.0,0.00012482,2]
[400693567,1767780637296,-228.70076657,0.00012608,2]
[400693568,1767780637305,-10422.18909889,0.000129,2]
[400693569,1767780637314,-500.0,0.0001327,2]
[400693570,1767780637324,-359.46184233,0.0001327,2]
[400693571,1767780637334,-500.0,0.0001327,2]
[400693572,1767780637343,-500.0,0.0001327,2]
[400693573,1767780637352,-500.0,0.0001327,2]
[400693574,1767780637361,-500.0,0.0001327,2]
[400693575,1767780637371,-500.0,0.0001327,2]
[400693576,1767780637380,-50000.0,0.00013271,2]
[400693577,1767780637389,-6354.91837628,0.00013272,2]
[400693579,1767780637398,-500.0,0.00013273,2]
[400693580,1767780637408,-456.09862338,0.00013273,2]
[400693582,1767780637418,-500.0,0.00013273,2]
[400693584,1767780637427,-500.0,0.00013273,2]
[400693585,1767780637437,-500.0,0.00013273,2]
[400693586,1767780637449,-500.0,0.00013273,2]
[400693587,1767780637459,-500.0,0.00013273,2]
[400693588,1767780637468,-500.0,0.00013273,2]
[400693589,1767780637479,-500.0,0.00013273,2]
[400693590,1767780637488,-500.0,0.00013273,2]
[400693591,1767780637499,-500.0,0.00013273,2]
[400693592,1767780637508,-502.33157316,0.00013273,2]
[400693593,1767780637518,-502.78216863,0.00013273,2]
[400693594,1767780637527,-497.55670689,0.00013273,2]
[400693595,1767780637536,-500.76042299,0.00013273,2]
[400693596,1767780637546,-205.17906875,0.00013521,2]
[400693597,1767780637555,-600.0,0.00013536,2]
[400693598,1767780637564,-500.0,0.00013698,2]
[400693599,1767780637573,-220.3326895,0.00013699,2]
[400693600,1767780637582,-1000.0,0.00013699,2]
[400693601,1767780637592,-500.0,0.00013821,2]
[400693602,1767780637601,-1000.0,0.00013821,2]
[400693603,1767780637610,-500.0,0.00013821,2]
[400693604,1767780637619,-500.0,0.00013821,2]
[400693605,1767780637628,-180.26790877,0.00014175,2]
[400693606,1767780637638,-235.61057419,0.00014175,2]
[400693607,1767780637647,-1500.0,0.00014368,2]
[400693608,1767780637656,-10422.18909886,0.0001475,2]
[400693609,1767780637665,-720.0,0.0001489,2]
[400693610,1767780637674,-2000.0,0.00014916,2]
[400693611,1767780637683,-1000.0,0.00015,2]
[400693612,1767780637692,-2500.0,0.00015464,2]
[400693613,1767780637700,-236.47757076,0.00015521,2]
[400693614,1767780637710,-282.68,0.00015907,4]
[400693615,1767780637719,-392.1432702,0.00015961,4]
[400693616,1767780637729,-3000.0,0.00016,2]
[400693617,1767780637738,-3000.0,0.0001601,2]
[400693618,1767780637747,-3000.0,0.00016012,2]
[400693619,1767780637756,-3000.0,0.0001602,2]
[400693620,1767780637765,-3000.0,0.0001603,2]
[400693621,1767780637774,-3000.0,0.0001604,2]
[400693622,1767780637783,-500.0,0.00016049,2]
[400693623,1767780637793,-3000.0,0.0001605,2]
[400693624,1767780637802,-3000.0,0.0001606,2]
[400693625,1767780637811,-1214.15959635,0.0001607,2]
[400693626,1767780637823,-412.71247724,0.0001607,2]
[400693647,1767780638455,-1373.12792641,0.0001607,2]
[400693648,1767780638464,-949.14388667,0.0001608,2]
[400693649,1767780638476,-2050.85611333,0.0001608,2]
[400693650,1767780638486,-2195.9179161,0.0001609,2]
[400693651,1767780638498,-804.0820839,0.0001609,2]
[400693652,1767780638510,-4036.3777585,0.000161,2]
[400693653,1767780638522,-1454.5475265,0.000161,2]
[400693654,1767780638533,-864.0,0.00016379,2]
[400693655,1767780638543,-3500.0,0.0001656,2]
[400693656,1767780638553,-2036.53218746,0.00017108,2]
[400693657,1767780638565,-1451.78687886,0.00017108,2]
[400693658,1767780638576,-511.68093368,0.00017108,2]
[400693659,1767780638586,-500.0,0.00017345,2]
[400693660,1767780638595,-267.77607278,0.00017521,2]
[400693661,1767780638604,-4500.0,0.00017656,2]
[400693662,1767780638613,-224.35,0.00018,2]
[400693663,1767780638623,-10422.18909886,0.00018015,2]
[400693664,1767780638633,-1000.0,0.00018017,2]
[400693665,1767780638642,-5000.0,0.00018204,2]
[400693666,1767780638652,-5500.0,0.00018752,2]
[400693667,1767780638661,-594.84559248,0.00018922,9]
[400693668,1767780638671,-167.3,0.000193,2]
[400693669,1767780638681,-155.57,0.000193,2]
[400693670,1767780638690,-1012.18,0.000193,2]
[400693671,1767780638699,-6000.0,0.000193,2]
[400693672,1767780638708,-179.4711241,0.00019452,3]
[400693673,1767780638717,-299.07457479,0.00019521,2]
[400693674,1767780638727,-1041.66666667,0.00019785,2]
[400693675,1767780638736,-1000.0,0.00019819,2]
[400693676,1767780638746,-244.0,0.00019819,2]
[400693677,1767780638756,-6500.0,0.00019848,2]
[400693679,1767780638765,-2002.67735813,0.00020396,2]
[400693681,1767780638774,-710.56951528,0.00020402,12]
[400693683,1767780638784,-10422.18909886,0.0002128,2]
[400693685,1767780638794,-500.0,0.00021304,2]
[400693687,1767780638803,-330.3730768,0.00021521,2]
[400693689,1767780638812,-2030.296672,0.00021533,2]
[400693691,1767780638822,-17111.14690408,0.00021533,2]
[400693693,1767780638831,-2105.41764886,0.00021588,2]
[400693695,1767780638840,-2183.31810187,0.00021643,2]
[400693697,1767780638849,-2264.10087164,0.00021698,2]
[400693699,1767780638859,-2347.87260389,0.00021753,2]
[400693701,1767780638869,-1000.0,0.00021801,10]
[400693703,1767780638878,-492.0,0.00021801,10]
[400693705,1767780638887,-2434.74389024,0.00021808,2]
[400693707,1767780638896,-2524.82941417,0.00021863,2]
[400693709,1767780638905,-834.88459352,0.00021882,15]
[400693711,1767780638914,-1466.80709648,0.00021918,2]
[400693714,1767780638930,-1151.44100601,0.00021918,2]
[400693716,1767780638939,-296.44,0.00022,2]
[400693718,1767780638949,-865.91,0.00022,7]
[400693720,1767780638958,-1012.18,0.000222,14]
[400693722,1767780638967,-300.0,0.00022466,2]
[400693724,1767780638978,-450.0,0.00023014,2]
[400693726,1767780638988,-167.3,0.000232,7]
[400693728,1767780638997,-500.0,0.00023216,2]
[400693730,1767780639007,-967.23353694,0.00023362,18]
[400693732,1767780639017,-361.67157881,0.00023521,2]
[400693734,1767780639027,-600.0,0.00023562,2]
[400693736,1767780639036,-1000.0,0.00023675,2]
[400693738,1767780639045,-500.0,0.00023698,2]
[400693740,1767780639055,-1000.0,0.00023816,2]
[400693742,1767780639065,-1000.0,0.00023848,2]
[400693744,1767780639075,-500.0,0.00023928,2]
[400693746,1767780639084,-500.0,0.00023945,2]
[400693748,1767780639094,-500.0,0.00023956,2]
[400693750,1767780639103,-1000.0,0.00023981,10]
[400693752,1767780639113,-791.0,0.00023981,10]
[400693754,1767780639123,-57791.68477226,0.0002399,2]
[400693756,1767780639132,-731.07580657,0.0002411,2]
[400693758,1767780639141,-1000.0,0.0002433,2]
[400693760,1767780639151,-280.28268334,0.00024338,2]
[400693762,1767780639160,-865.91,0.000244,7]
[400693764,1767780639171,-500.0,0.00024455,2]
[400693766,1767780639181,-1012.18,0.000245,14]
[400693768,1767780639193,-10422.18909886,0.00024545,2]
[400693770,1767780639203,-500.0,0.00024756,2]
[400693772,1767780639214,-500.0,0.00024756,2]
[400693774,1767780639225,-296.44,0.000248,2]
[400693775,1767780639236,-1107.15531741,0.00024842,20]
[400693777,1767780639246,-500.0,0.00024899,2]
[400693779,1767780639256,-500.0,0.00024899,2]
[400693781,1767780639266,-500.0,0.00024899,2]
[400693783,1767780639277,-500.0,0.00024899,2]
[400693785,1767780639287,-500.0,0.00024899,2]
[400693787,1767780639297,-746.27717423,0.000249,2]
[400693789,1767780639308,-284706.596681,0.000249,2]
[400693791,1767780639318,-157.0,0.00024932,15]
[400693793,1767780639328,-155.57,0.00025,7]
[400693795,1767780639337,-151.0,0.00025031,2]
[400693797,1767780639347,-250.0,0.00025205,2]
[400693799,1767780639359,-392.97008083,0.00025521,2]
[400693800,1767780639369,-427.91976094,0.00025749,2]
[400693803,1767780639379,-350.0,0.00025753,2]
[400693805,1767780639390,-1000.0,0.00025919,7]
[400693807,1767780639400,-500.0,0.00026004,7]
[400693809,1767780639410,-177.70885101,0.00026139,9]
[400693811,1767780639424,-1000.0,0.00026168,7]
[400693813,1767780639438,-865.91,0.000262,7]
[400693815,1767780639449,-380.0,0.0002626,2]
[400693817,1767780639460,-450.0,0.00026301,2]
[400693818,1767780639469,-1254.26026257,0.00026322,23]
[400693820,1767780639479,-1000.0,0.00026379,30]
[400693822,1767780639490,-1000.0,0.00026379,30]
[400693824,1767780639499,-1012.18,0.000264,14]
[400693827,1767780639511,-1000.0,0.00026401,7]
[400693828,1767780639520,-1000.0,0.00026516,7]
[400693830,1767780639530,-1000.0,0.00026562,7]
[400693832,1767780639539,-151.0,0.00026584,2]
[400693834,1767780639549,-296.44,0.000266,2]
[400693836,1767780639559,-814.34946713,0.0002679,2]
[400693838,1767780639568,-1000.0,0.00026809,7]
[400693840,1767780639578,-1000.0,0.00026829,7]
[400693842,1767780639588,-550.0,0.00026849,2]
[400693844,1767780639597,-12999.53,0.000269,3]
[400693846,1767780639607,-4638.31623362,0.000271,2]
[400693848,1767780639616,-47451.0994467,0.00027167,2]
[400693850,1767780639625,-217368.4425339,0.00027177,2]
[400694489,1767780646397,-59943.99335177,0.00027177,2]
[400694491,1767780646409,-7394.16079533,0.00027177,2]
[400694493,1767780646418,-18734.94680122,0.00027187,2]
[400694495,1767780646431,-297.74078594,0.00027187,2]
[400697391,1767780924167,665.0,0.00024851,120]
[400697392,1767780925516,665.0,0.00026093,120]
[400697393,1767780926862,665.0,0.00027398,120]
[400697394,1767780928203,665.0,0.00028768,120]
[400697398,1767781207803,333.0,0.00026162,120]
[400697399,1767781209049,333.0,0.0002747,120]
[400697400,1767781210401,333.0,0.00028844,120]
[400697402,1767781346793,171.0,0.00023548,120]
[400697403,1767781348012,171.0,0.00024726,120]
[400697404,1767781349476,171.0,0.00025962,120]
[400697405,1767781350762,171.0,0.0002726,120]
[400697410,1767781510937,199.0,0.00026182,120]
[400697411,1767781513603,199.0,0.00027491,120]
[400697412,1767781514868,199.0,0.00028866,120]
[400697430,1767781692740,1927.7636651,0.0001,2]
[400697434,1767781700891,289.07303095,0.0001,2]
[400697439,1767781717328,7783.17330395,0.0001,2]
[400697440,1767781717352,2229.79318552,0.0001,2]
[400697441,1767781717710,531.98749874,0.0001,2]
[400697442,1767781743474,153.0,8.3e-07,2]
[400697443,1767781745092,153.0,8.3e-07,2]
[400697444,1767781754226,211.85,8.413e-05,2]
[400697445,1767781754671,317.77,8.795e-05,2]
[400697446,1767781755061,423.7,9.178e-05,2]
[400697447,1767781755556,529.62,9.56e-05,2]
[400697448,1767781755968,635.55,9.943e-05,2]
[400697449,1767781756424,741.47,0.00010325,2]
[400697450,1767781756825,847.4,0.00010707,2]
[400697451,1767781757250,953.32,0.0001109,2]
[400697452,1767781757285,2271.54931574,0.0001,2]
[400697453,1767781757307,8297.82068426,0.0001,2]
[400697454,1767781757679,1059.25,0.00011472,2]
[400697465,1767781811594,171.0,0.00026467,120]
[400697467,1767781812938,171.0,0.0002779,120]
[400697474,1767781814224,171.0,0.00029179,120]
[400697489,1767781817347,170.912872,7.077e-05,2]
[400697491,1767781830508,231.73,9.742e-05,2]
[400697492,1767781830925,240.29644374,0.00010185,2]
[400697493,1767781830948,107.30355626,0.00010185,2]
[400697494,1767781831475,463.47,0.00010628,2]
[400697499,1767781832085,579.34,0.00011071,2]
[400697511,1767781832291,695.2,0.00011514,2]
[400697512,1767781832724,811.07,0.00011957,2]
[400697528,1767781838704,-926.94,0.00012399,2]
[400697529,1767781838716,-1042.81,0.00012842,2]
[400697530,1767781838728,-1158.67,0.00013285,2]
[400697531,1767781838739,-170.912872,0.00014154,2]
[400697532,1767781838749,-411.72936871,0.00014659,2]
[400697533,1767781838760,-772.8894135,0.00014807,2]
[400697534,1767781838777,-637.31486418,0.000149,2]
[400697535,1767781838787,-545.401,0.00015,2]
[400697536,1767781838798,-293.449265,0.00015064,2]
[400697537,1767781838809,-5848.6546226,0.00015184,2]
[400697538,1767781838819,-300.0,0.0001526,2]
[400697539,1767781838829,-35755.4669123,0.00015261,2]
[400697540,1767781838840,-1230.70959877,0.00015988,2]
[400697541,1767781838852,-90427.84776536,0.0001599,2]
[400697542,1767781838865,-1077.81542796,0.0001599,2]
[400697543,1767781838879,-908494.33680668,0.0001599,2]
[400697544,1767781838890,-500.0,0.00016088,2]
[400697545,1767781838901,-500.0,0.00016088,2]
[400697546,1767781838913,-500.0,0.00016088,2]
[400697547,1767781838923,-500.0,0.00016088,2]
[400697548,1767781838934,-500.0,0.00016088,2]
[400697549,1767781838944,-500.0,0.00016088,2]
[400697550,1767781838954,-500.0,0.00016088,2]
[400697551,1767781838965,-500.0,0.00016088,2]
[400697552,1767781838977,-500.0,0.00016088,2]
[400697553,1767781838989,-500.0,0.00016088,2]
[400697554,1767781839000,-500.0,0.00016088,2]
[400697555,1767781839011,-500.0,0.00016088,2]
[400697556,1767781839023,-500.0,0.00016088,2]
[400697557,1767781839035,-500.0,0.00016088,2]
[400697558,1767781839046,-500.0,0.00016088,2]
[400697559,1767781839058,-302.2552967,0.00016088,2]
[400697560,1767781839070,-500.0,0.00016088,2]
[400697561,1767781839083,-500.0,0.00016088,2]
[400697562,1767781839094,-500.0,0.00016088,2]
[400697563,1767781839106,-500.0,0.00016088,2]
[400697564,1767781839117,-500.0,0.00016088,2]
[400697565,1767781839129,-223.06611259,0.00016088,2]
[400697566,1767781839140,-500.0,0.00016088,2]
[400697567,1767781839151,-500.0,0.00016088,2]
[400697568,1767781839161,-500.0,0.00016088,2]
[400697569,1767781839172,-336.17092936,0.00016088,2]
[400697570,1767781839182,-500.0,0.00016088,2]
[400697571,1767781839192,-500.0,0.00016088,2]
[400697572,1767781839202,-500.0,0.00016088,2]
[400697573,1767781839212,-500.0,0.00016088,2]
[400697574,1767781839223,-500.0,0.00016088,2]
[400697575,1767781839233,-500.0,0.00016088,2]
[400697576,1767781839243,-500.0,0.00016088,2]
[400697577,1767781839254,-500.0,0.00016088,2]
[400697578,1767781839265,-500.0,0.00016088,2]
[400697579,1767781839275,-500.0,0.00016088,2]
[400697580,1767781839284,-500.0,0.00016088,2]
[400697581,1767781839294,-500.0,0.00016088,2]
[400697582,1767781839304,-500.0,0.00016088,2]
[400697583,1767781839313,-500.0,0.00016088,2]
[400697584,1767781839323,-500.0,0.00016088,2]
[400697585,1767781839333,-500.0,0.00016088,2]
[400697586,1767781839343,-500.0,0.00016088,2]
[400697587,1767781839353,-500.0,0.00016088,2]
[400697588,1767781839363,-500.0,0.00016088,2]
[400697589,1767781839372,-500.0,0.00016088,2]
[400697590,1767781839382,-500.0,0.00016088,2]
[400697591,1767781839392,-500.0,0.00016088,2]
[400697592,1767781839402,-500.0,0.00016088,2]
[400697593,1767781839411,-500.0,0.00016088,2]
[400697594,1767781839421,-500.0,0.00016088,2]
[400697595,1767781839430,-500.0,0.00016088,2]
[400697596,1767781839439,-500.0,0.00016088,2]
[400697597,1767781839449,-500.0,0.00016088,2]
[400697598,1767781839458,-500.0,0.00016088,2]
[400697599,1767781839468,-500.0,0.00016088,2]
[400697600,1767781839478,-500.0,0.00016088,2]
[400697601,1767781839487,-500.0,0.00016088,2]
[400697602,1767781839497,-163.09618338,0.00016088,2]
[400697603,1767781839506,-1488.3780018,0.00016293,2]
[400697604,1767781839515,-420.0,0.00016697,2]
[400697605,1767781839524,-177.0,0.00016733,2]
[400697606,1767781839534,-759.54450088,0.00017237,2]
[400697607,1767781839544,-684.88052049,0.00017237,2]
[400697608,1767781839553,-6267.66,0.00018082,3]
[400697609,1767781839563,-587.0,0.00018269,2]
[400697610,1767781839572,-204.0,0.00018733,2]
[400697611,1767781839582,-316.03083396,0.00018973,2]
[400697612,1767781839591,-1230.70959876,0.00019021,2]
[400697613,1767781839600,-352.8926,0.00019178,2]
[400697614,1767781839610,-352.8926,0.00019178,3]
[400697615,1767781839619,-150.92,0.00019178,2]
[400697616,1767781839636,-166.0,0.00019534,3]
[400697617,1767781839646,-174.0,0.000196,2]
[400697618,1767781839656,-165.3,0.000196,2]
[400697619,1767781839665,-681.0,0.00019989,2]
[400697620,1767781839674,-231.0,0.00020733,2]
[400697621,1767781839683,-352.8926,0.00020804,2]
[400697622,1767781839693,-352.8926,0.00020804,3]
[400697623,1767781839702,-352.8926,0.00020804,5]
[400697624,1767781839711,-200.0,0.00020804,2]
[400697625,1767781839720,-181.761342,0.0002123,2]
[400697626,1767781839731,-500.0,0.00021687,2]
[400697627,1767781839739,-500.0,0.00021687,2]
[400697628,1767781839748,-431.73130565,0.00021687,2]
[400697629,1767781839758,-500.0,0.00021687,2]
[400697630,1767781839771,-500.0,0.00021687,2]
[400697631,1767781839781,-500.0,0.00021687,2]
[400697632,1767781839790,-500.0,0.00021687,2]
[400697633,1767781839799,-500.0,0.00021687,2]
[400697634,1767781839810,-500.0,0.00021687,2]
[400697635,1767781839823,-500.0,0.00021687,2]
[400697636,1767781839835,-500.0,0.00021687,2]
[400697637,1767781839844,-500.0,0.00021687,2]
[400697638,1767781839853,-649.0981795,0.00021687,2]
[400697639,1767781839863,-500.0,0.00021687,2]
[400697640,1767781839873,-500.0,0.00021687,2]
[400697641,1767781839883,-889.0205241,0.00021688,2]
[400697642,1767781839894,-3038.17800352,0.00021726,2]
[400697643,1767781839904,-1230.70959876,0.00022054,2]
[400697644,1767781839913,-258.0,0.00022733,2]
[400697645,1767781839923,-900.0,0.00023189,2]
[400697646,1767781839933,-900.0,0.00023193,2]
[400697647,1767781839942,-264.51,0.000232,2]
[400697648,1767781839951,-151.0,0.00023471,2]
[400697649,1767781839961,-500.0,0.00023504,2]
[400697650,1767781839971,-30240.28138531,0.000242,2]
[400697651,1767781839980,-174.0,0.000242,7]
[400697652,1767781839991,-860.36,0.000242,14]
[400697653,1767781840000,-156724.58563049,0.0002465,2]
[400697654,1767781840010,-513.79712507,0.0002465,2]
[400697655,1767781840020,-285.0,0.00024733,2]
[400697656,1767781840030,-16821.80898001,0.00024774,2]
[400697657,1767781840040,-500.0,0.00024881,2]
[400697658,1767781840050,-779.32,0.000249,7]
[400697659,1767781840059,-47661.17369893,0.000249,2]
[400697673,1767781840931,-250.89869577,0.000249,2]
[400697674,1767781840946,-591.95824618,0.000249,2]
[400697683,1767781846582,-794.49310417,0.000249,2]
[400697684,1767781847093,-355.57881194,0.000249,2]
[400697697,1767781907696,197.27,8.264e-05,2]
[400697698,1767781908139,263.02,8.623e-05,2]
[400697699,1767781908534,328.78,8.983e-05,2]
[400697700,1767781909433,394.54,9.342e-05,2]
[400697701,1767781909868,460.29,9.701e-05,2]
[400697702,1767781910265,526.05,0.00010061,2]
[400697703,1767781910671,591.81,0.0001042,2]
[400697704,1767781911067,657.56,0.00010779,2]
[400697709,1767781982965,159.97,0.00010783,2]
[400697710,1767781983447,186.63,0.00011197,2]
[400697711,1767781983897,213.29,0.00011612,2]
[400697712,1767781984336,239.95,0.00012027,2]
[400697716,1767782022355,155.0,6e-05,2]
[400697720,1767782052490,160.1,0.00011078,2]
[400697721,1767782052896,182.97,0.00011488,2]
[400697722,1767782053303,205.85,0.00011899,2]
[400697731,1767782109164,188.0,0.00024968,120]
[400697732,1767782110353,188.0,0.00026216,120]
[400697733,1767782111584,188.0,0.00027527,120]
[400697734,1767782113047,188.0,0.00028903,120]
[400697748,1767782362131,5000.0,0.00030137,120]
[400697759,1767782406887,5000.0,0.00030137,120]
[400697760,1767782412061,162.0,0.00025078,120]
[400697763,1767782413343,162.0,0.00026332,120]
[400697766,1767782414859,162.0,0.00027648,120]
[400697767,1767782416334,162.0,0.00029031,120]
[400697821,1767782707070,162.0,0.00025183,120]
[400697822,1767782708135,162.0,0.00026442,120]
[400697823,1767782709677,162.0,0.00027764,120]
[400697843,1767782818669,275.75255331,0.00025029,120]
[400697908,1767782934805,201.41146488,0.00025029,120]
[400698019,1767783031585,-1183.04560614,0.000127,2]
[400698020,1767783031596,-215.64172979,0.00012893,2]
[400698021,1767783031606,-75.59401485,0.00012957,2]
[400698022,1767783031618,-90.86579025,0.00012957,2]
[400698023,1767783031627,-500.0,0.00013273,2]
[400698024,1767783031637,-500.0,0.00013273,2]
[400698025,1767783031646,-62.75078136,0.00013273,2]
[400698026,1767783031658,-437.24921864,0.00013273,2]
[400698027,1767783031667,-181.14739614,0.00013505,2]
[400698048,1767783037709,-181.24401079,0.00013505,2]
[400698050,1767783037719,-300.0,0.00013597,2]
[400698052,1767783037728,-2632.98029664,0.00013598,2]
[400698055,1767783037739,-311.65185859,0.00013598,2]
[400698057,1767783037750,-673.35,0.00013598,2]
[400698059,1767783037761,-5672.08212785,0.00013598,2]
[400698062,1767783037775,-6662.08556657,0.00013598,2]
[400698064,1767783037786,-1416.32791025,0.00013598,2]
[400698066,1767783037802,-270543.11946988,0.00013598,2]
[400698068,1767783037813,-712088.40277022,0.00013598,2]
[400698070,1767783037823,-5211.09454943,0.00013598,2]
[400698072,1767783037832,-300.0,0.00013673,2]
[400698074,1767783037841,-50000.0,0.00013696,2]
[400698076,1767783037850,-500.0,0.00013697,2]
[400698078,1767783037859,-500.0,0.00013697,2]
[400698080,1767783037870,-500.0,0.00013697,2]
[400698082,1767783037879,-500.0,0.00013697,2]
[400698084,1767783037891,-500.0,0.00013697,2]
[400698086,1767783037902,-500.0,0.00013697,2]
[400698088,1767783037911,-500.0,0.00013697,2]
[400698090,1767783037921,-500.0,0.00013697,2]
[400698092,1767783037930,-500.0,0.00013697,2]
[400698094,1767783037939,-302.2552967,0.00013697,2]
[400698096,1767783037949,-210.60102179,0.00013697,2]
[400698098,1767783037958,-500.0,0.00013697,2]
[400698100,1767783037967,-500.0,0.00013697,2]
[400698102,1767783037976,-500.0,0.00013697,2]
[400698104,1767783037985,-500.0,0.00013697,2]
[400698106,1767783037995,-500.0,0.00013697,2]
[400698108,1767783038004,-500.0,0.00013697,2]
[400698110,1767783038013,-500.0,0.00013697,2]
[400698112,1767783038023,-500.0,0.00013697,2]
[400698114,1767783038033,-500.0,0.00013697,2]
[400698116,1767783038043,-500.0,0.00013697,2]
[400698118,1767783038053,-500.0,0.00013697,2]
[400698121,1767783038063,-500.0,0.00013697,2]
[400698123,1767783038073,-500.0,0.00013697,2]
[400698125,1767783038083,-500.0,0.00013697,2]
[400698127,1767783038093,-500.0,0.00013697,2]
[400698128,1767783038102,-500.0,0.00013697,2]
[400698131,1767783038112,-500.0,0.00013697,2]
[400698133,1767783038121,-500.0,0.00013697,2]
[400698134,1767783038135,-500.0,0.00013697,2]
[400698136,1767783038145,-500.0,0.00013697,2]
[400698138,1767783038155,-500.0,0.00013697,2]
[400698140,1767783038166,-500.0,0.00013697,2]
[400698142,1767783038176,-500.0,0.00013697,2]